Cogmind - Beta 13 @@@ ROGUE MODE // 2024.05.05 @ 15:11:13 Player: CONM Result: Destroyed by G-34 Mercenary with Small Laser Performance ------------- Evolutions (1) 500 Regions Visited (3) 600 Robots Destroyed (12) 60 Value Destroyed (177) 177 Prototype IDs (0) 0 Alien Tech Used (0) 0 Bonus (0) 0 TOTAL SCORE: 1337 Bonus ------- None Cogmind --------- Core Integrity 0/400 Matter 208/300 Energy 265/265 System Corruption 0% Temperature Cool (6) Movement Core (150) Ox2 Location -9/Materials Parts ------- > --- POWER (1) -------- Improved Ion Engine > --- PROPULSION (3) --- (None) > --- UTILITY (3) ------ (None) > --- WEAPON (2) ------- (None) > --- INVENTORY (5) ---- Heat Sink Large Storage Unit High-capacity Storage Unit Peak State ------------ > --- POWER ------------ Improved Ion Engine > --- PROPULSION ------- Aluminum Leg Carbon-fiber Leg > --- UTILITY ---------- Small Storage Unit Improved Terrain Scanner Improved Terrain Scan Processor > --- WEAPON ----------- Beamcaster > --- INVENTORY -------- Improved Ion Engine Heat Sink High-capacity Storage Unit Shield Generator EMP Trap EMP Trap [Rating: 18] Favorites ----------- Power Improved Ion Engine Engine Improved Ion Engine Power Core Nuclear Core Propulsion Light Treads Treads Light Treads Leg Aluminum Leg Wheel Wheel Hover Unit Hover Unit Utility Small Storage Unit Device Improved Terrain Scanner Storage Small Storage Unit Processor Improved Terrain Scan Processor Weapon Autogun Energy Gun Beamcaster Ballistic Gun Autogun Build | -11 -10 -10 -9 ------- Run | Yrd Mat Min Mat Slots Evolved 2 | . . . 2 Power . | . . . . Propulsion 1 | . . . 1 Utility 1 | . . . 1 Weapon . | . . . . Parts Attached 27 | 6 5 12 4 Power 5 | 1 1 2 1 Engine 4 | 1 1 1 1 Core 1 | . . 1 . Reactor . | . . . . Propulsion 6 | 2 . 3 1 Treads 2 | 2 . . . Leg 2 | . . 2 . Wheel 1 | . . 1 . Hover 1 | . . . 1 Flight . | . . . . Utility 12 | 2 2 6 2 Device 6 | 1 . 3 2 Storage 5 | 1 2 2 . Processor 1 | . . 1 . Hackware . | . . . . Protection . | . . . . Artifact . | . . . . Weapon 4 | 1 2 1 . Energy Gun 1 | . . 1 . Energy Cannon . | . . . . Ballistic Gun 3 | 1 2 . . Ballistic Cannon . | . . . . Launcher . | . . . . Special Weapon . | . . . . Impact Weapon . | . . . . Slashing Weapon . | . . . . Piercing Weapon . | . . . . Special Melee Weapon . | . . . . Unidentified Prototypes . | . . . . Parts Lost 15 | . . 6 9 Power 2 | . . 1 1 Propulsion 6 | . . 3 3 Utility 4 | . . . 4 Weapon 3 | . . 2 1 Highest Loss Streak 6 | . . 3 6 To Critical Strikes . | . . . . Average Slot Usage (%) 86 | . 99 92 63 Engine 9 | . 14 7 9 Core 2 | . . 5 . Treads 18 | . 28 22 . Leg 4 | . . 1 15 Wheel 1 | . . 2 . Device 9 | . 14 7 10 Storage 13 | . 14 13 11 Processor 5 | . . 6 8 Energy Gun 2 | . . 1 7 Ballistic Gun 17 | . 27 22 . Naked Turns . | . . . . Heaviest Build 53 | 13 19 53 18 Greatest Support 40 | 40 40 40 25 Greatest Overweight (x) 5 | 3 . 5 4 Average Overweight (x) . | . . . . Largest Inventory Capacity 20 | 8 20 20 8 Average Capacity 8 | 7 8 9 7 Most Carried 8 | 5 8 8 7 Average Carried 6 | 2 7 7 5 Final Capacity 8 | 8 8 8 5 Final Carried 8 | 5 8 7 3 Class Distribution -------------------- 85% | Mutant 14% | Scavenger-Mutant Dominant Class ---------------- Mutant | -10/Materials Mutant | -10/Mines Scavenger-Mutant | -9/Materials Resources | -11 -10 -10 -9 ----------- Run | Yrd Mat Min Mat Matter Collected 487 | 302 30 137 18 Remotely . | . . . . Salvage Created 318 | 112 30 158 18 Parts 20 | 6 1 12 1 Haulers Intercepted . | . . . . Recyclers Shooed . | . . . . Parts Field Recycled . | . . . . Retrieved Matter . | . . . . Parts Self-Destructed . | . . . . Prevented . | . . . . Kills | -11 -10 -10 -9 ------- Run | Yrd Mat Min Mat Combat Hostiles Destroyed 5 | . . 5 . Guns 5 | . . 5 . Classes Destroyed 6 | 2 1 2 1 Tunneler 4 | 3 . 1 . Recycler 1 | 1 . . . Operator 1 | . . . 1 Watcher 1 | . 1 . . Swarmer 3 | . . 3 . Grunt 2 | . . 2 . Best Kill Streak 3 | 3 1 3 1 Combat Bots Only 3 | . . 3 . Max Kills in Single Turn 1 | 1 1 1 1 Gunslinging . | . . . . Exploded . | . . . . Melee . | . . . . Uniques/NPCs Destroyed . | . . . . Combat | -11 -10 -10 -9 -------- Run | Yrd Mat Min Mat Hostile Shots Fired 244 | . 9 111 124 Missed 81 | . 4 36 41 Damage Taken 1983 | . 70 884 1029 Core 584 | . . 182 402 Absorbed by Shields 43 | . . 12 31 Core Remaining (%) 63 | 100 . 27 . Volleys Fired 45 | 14 5 24 2 Largest 2 | 1 2 2 1 Hottest 75 | 20 46 75 75 Shots Fired 66 | 14 10 40 2 Gun 66 | 14 10 40 2 Cannon . | . . . . Launcher . | . . . . Special . | . . . . Kinetic 56 | 14 10 32 . Thermal 10 | . . 8 2 Explosive . | . . . . Electromagnetic . | . . . . Robot Hit Streak 4 | 4 3 4 1 Robot Miss Streak 5 | 1 4 5 1 Penetration Max . | . . . . Secondary Targets 1 | . . 1 . Max Gunslinging Chain 1 | . . 1 . Shots Hit Robots 32 | 11 4 16 1 Core Hits 15 | 4 1 9 1 Critical Kills . | . . . . Critical Parts Destroyed . | . . . . Critical Strikes . | . . . . Melee Attacks . | . . . . Impact . | . . . . Slashing . | . . . . Piercing . | . . . . Sneak Attacks . | . . . . Combat Hostiles . | . . . . Follow-up Attacks . | . . . . Damage Inflicted 554 | 142 69 319 24 Guns 537 | 142 69 304 22 Cannons . | . . . . Explosions . | . . . . Melee . | . . . . Ramming 17 | . . 15 2 Kinetic 430 | 142 69 219 . Thermal 107 | . . 85 22 Explosive . | . . . . Electromagnetic . | . . . . Impact . | . . . . Slashing . | . . . . Piercing . | . . . . Highest Corruption . | . . . . Average Corruption . | . . . . Corruption Purged . | . . . . Corruption Blocked . | . . . . Overload Shots . | . . . . Overflow Damage . | . . . . Projectiles . | . . . . Explosions . | . . . . Melee . | . . . . Knockbacks . | . . . . Impact . | . . . . Kinetic . | . . . . Secondary . | . . . . Self-Inflicted Damage 6 | . . 6 . Shots . | . . . . Rammed 5 | . . 4 1 Targets Rammed 7 | . . 4 3 Kicked 2 | . . . 2 Crushed . | . . . . Highest Temperature 199 | . 16 199 60 Average Temperature 46 | . 7 53 35 Received Heat Transfer 931 | . 39 436 456 Siege Activations . | . . . . Robots Corrupted . | . . . . Combat Hostiles . | . . . . Parts Fried . | . . . . Impact Corruptions . | . . . . Robots Melted . | . . . . Combat Hostiles . | . . . . Parts Melted 2 | . . 1 1 Heat Transferred 185 | . . 148 37 Parts Sabotaged . | . . . . Parts Stolen . | . . . . Parts Stripped . | . . . . Power Chain Reactions . | . . . . Alert | -11 -10 -10 -9 ------- Run | Yrd Mat Min Mat Peak Influence 109 | 20 50 109 61 Initial 19 | . 13 19 11 Average 20 | 7 28 20 21 Maximum Alert Level . | . . . . Low Security (%) 100 | 100 100 100 100 Level 1 . | . . . . Level 2 . | . . . . Level 3 . | . . . . Level 4 . | . . . . Level 5 . | . . . . High Security . | . . . . Max Security . | . . . . Squads Dispatched 3 | . . 1 2 Investigation 2 | . . 1 1 Extermination . | . . . . Reinforcement 1 | . . . 1 Assault . | . . . . Garrison . | . . . . Intercept . | . . . . Searches Triggered . | . . . . Construction Impeded . | . . . . Haulers Reinforced . | . . . . Active Scanning Responses . | . . . . Cargo Convoy Interrupts . | . . . . Stealth | -11 -10 -10 -9 --------- Run | Yrd Mat Min Mat Distress Signals 4 | . . . 4 Communications Jammed . | . . . . Distress Signals . | . . . . Times Spotted 30 | . 6 8 16 Peak Tracking Total 13 | . 2 3 13 Tactical Retreats 2 | . . 1 1 Traps | -11 -10 -10 -9 ------- Run | Yrd Mat Min Mat Traps Triggered 1 | . . . 1 Indirectly . | . . . . Trap Hack Attempts . | . . . . Triggered . | . . . . Disarmed . | . . . . Reprogrammed . | . . . . Reused . | . . . . Traps Extracted . | . . . . Installed . | . . . . Triggered . | . . . . Most Traps Carried 2 | . . 2 2 Machines | -11 -10 -10 -9 ---------- Run | Yrd Mat Min Mat Machines Disabled . | . . . . Max in Single Turn . | . . . . Machines Repaired . | . . . . Machines Dismantled . | . . . . Machines Sabotaged . | . . . . Overloaded Fab Kills . | . . . . Hacking | -11 -10 -10 -9 --------- Run | Yrd Mat Min Mat Machines Accessed 4 | . 1 1 2 Terminals 2 | . 1 . 1 Fabricators . | . . . . Repair Stations 1 | . . . 1 Recycling Units . | . . . . Scanalyzers . | . . . . Garrison Access . | . . . . Total Hacks 6 | . 1 1 4 Successful 3 | . 1 1 1 Failed 3 | . . . 3 Catastrophic . | . . . . Database Lockouts . | . . . . Manual . | . . . . Terminals 2 | . 1 . 1 Fabricators . | . . . . Repair Stations 3 | . . . 3 Recycling Units . | . . . . Scanalyzers . | . . . . Garrison Access . | . . . . Terminal Hacks 2 | . 1 1 . Open Door 1 | . . 1 . Zone Layout 1 | . 1 . . Fabricator Hacks . | . . . . Repair Station Hacks 1 | . . . 1 Scan Component 1 | . . . 1 Recycling Unit Hacks . | . . . . Scanalyzer . | . . . . Garrison Access Hacks . | . . . . Unauthorized Hacks . | . . . . Terminals . | . . . . Fabricators . | . . . . Repair Stations . | . . . . Recycling Units . | . . . . Scanalyzers . | . . . . Garrison Access . | . . . . Data Cores Recovered 1 | . . . 1 Used . | . . . . Hacking Detections 1 | . . . 1 Full Trace Events . | . . . . Feedback Events . | . . . . Feedback Blocked . | . . . . Robot Schematics Acquired . | . . . . Robots Built . | . . . . Authchips . | . . . . Time . | . . . . Total Robot Build Rating . | . . . . Part Schematics Acquired . | . . . . Parts Built . | . . . . Authchips . | . . . . Time . | . . . . Total Part Build Rating . | . . . . Parts Repaired . | . . . . Time . | . . . . Parts Recycled . | . . . . Recycled Matter . | . . . . Retrieved Matter . | . . . . Retrieved Components . | . . . . Parts Scanalyzed . | . . . . Part Schematics Acquired . | . . . . Parts Damaged . | . . . . Bothacking | -11 -10 -10 -9 ------------ Run | Yrd Mat Min Mat Used RIF Installer . | . . . . Robots Hacked . | . . . . Non-combat . | . . . . Combat . | . . . . Robot Hacks Applied . | . . . . Relay Couplers Released . | . . . . Fabnet Peak Effective % . | . . . . Robots Rewired . | . . . . Allies Hacked . | . . . . Hacks Repelled . | . . . . Allies | -11 -10 -10 -9 -------- Run | Yrd Mat Min Mat Total Allies . | . . . . Largest Group . | . . . . Highest-Rated Group . | . . . . Highest-Rated Ally . | . . . . Total Orders . | . . . . Ally Attacks . | . . . . Total Damage . | . . . . Kills . | . . . . Allies Corrupted . | . . . . Allies Melted . | . . . . Intel | -11 -10 -10 -9 ------- Run | Yrd Mat Min Mat Robot Analysis Total . | . . . . Derelict Logs Recovered . | . . . . Drone Launches . | . . . . Drone Recoveries . | . . . . Exploration | -11 -10 -10 -9 ------------- Run | Yrd Mat Min Mat Turns Passed 1695 | 229 331 774 361 Spaces Moved 918 | 95 138 444 241 Core 54 | 22 . 3 29 Treads 543 | 73 138 332 . Legs 243 | . . 46 197 Wheels 63 | . . 63 . Hover 15 | . . . 15 Flight . | . . . . Fastest Speed 50 | 50 160 120 100 Average Speed 148 | 165 160 153 125 Slowest Speed 250 | 200 160 160 250 Overloaded Moves . | . . . . Propulsion Burnouts . | . . . . Robots Hopped . | . . . . Cave-ins Triggered . | . . . . Exploration Rate (%) 33 | 5 32 71 27 Regions Visited 3 Branch Regions 1 Pre-discovered Areas . | . . . . Known Exits Taken . | . . . . Unknown Exits Taken 3 | 1 1 1 . Scrap Searched . | . . . . Spaces Dug . | . . . . Terrain Destroyed . | . . . . Melee . | . . . . Projectile . | . . . . AOE . | . . . . Terrain Rammed . | . . . . Walls Destroyed . | . . . . Machines Disabled . | . . . . Actions | -11 -10 -10 -9 --------- Run | Yrd Mat Min Mat Total 1187 | 151 241 498 297 Wait 160 | 30 82 5 43 Move 915 | 94 137 443 241 Hop . | . . . . Pick Up 21 | 7 7 5 2 Fast Attach 7 | 4 . 3 . Attach 12 | 2 2 4 4 Detach . | . . . . Swap 8 | . 3 5 . Drop 12 | . 5 5 2 Fire 45 | 14 5 24 2 Melee . | . . . . Ram 4 | . . 3 1 Kick 2 | . . . 2 Crush 1 | . . 1 . Escape Stasis . | . . . . Rewire . | . . . . Trap . | . . . . Miscellaneous . | . . . . Route ------- -11/Scrapyard -10/Materials (discovered 2 exits: Mat / *Min) -10/Mines -9/Materials History --------- Turn | Location | Event 27 | -11/Scrapyard | Discovered new exit (range 16) 230 | -11/Scrapyard | Entered Materials 318 | -10/Materials | Build established: Mutant 508 | -10/Materials | Discovered new exit (range 17) 533 | -10/Materials | Discovered new exit (range 15) 561 | -10/Materials | Entered Mines 580 | -10/Mines | Met a Derelict bent on vengeance 971 | -10/Mines | Met a Derelict shopkeep closing up shop 1186 | -10/Mines | Discovered new exit (range 9) 1215 | -10/Mines | Found a hidden stash of uninstalled traps 1244 | -10/Mines | Core integrity fell below 50% 1294 | -10/Mines | Lost 3 parts (1p2n) 1335 | -10/Mines | Entered Materials 1335 | -9/Materials | Evolved 2 slots: Propulsion x1, Utility x1 1598 | -9/Materials | Met 8R-AWN 1606 | -9/Materials | Core integrity fell below 50% 1631 | -9/Materials | Core integrity fell below 20% 1652 | -9/Materials | Lost 6 parts (1p2n2u1w) 1696 | -9/Materials | Destroyed by G-34 Mercenary with Small Laser Last Messages --------------- 01641_ 8R-AWN suffers critical hit (Burn). 01643_ HV Slug penetrates Y-45 Defender. 01643_ Y-45 Defender suffers critical hit (Destroy). 01647_ HV Slug penetrates G-34 Mercenary. 01647_ G-34 Mercenary suffers critical hit (Destroy). 01647_ G-34 Mercenary destroyed. 01651_ HV Slug penetrates Y-45 Defender. 01651_ Y-45 Defender suffers critical hit (Destroy). 01651_ HV Slug penetrates Y-45 Defender. 01651_ Y-45 Defender destroyed. 01652_ U-05 Engineer builds a Wall. 01655_ 8R-AWN destroyed. 01656_ U-05 Engineer builds a Wall. 01657_ Slammed into G-34 Mercenary. 01661_ Hover Unit destroyed. 01668_ Shield Generator destroyed. 01690_ Sml. Storage Unit destroyed. Map ----- +----------------------------------------------------+ | | | | | | | | | | | | | | | | | | | | | | | | | | | | | | | | | | | | | | | ??????????????????????????????????????? | | ??????????????????????????????????????? | | ??????????????????????????????????????? | | ??????????????????????????????????????? | | ??????????????????????????????????????? | | ?????????????#######??????????????????? | | ?????????????#@ g #??????????????????? | | ?????????????# g #??????????????????? | | ?????????????# """ #??????????????????? | | ?????????????#g""" #??????????????????? | | ?????????????#g""" #??????????????????? | | ?????????????# """ #??????????????????? | | ?????????????#gY #????????????? ##??? | | ?????????????# """ #??#??????#?? ##?? | | ?????????????# """ #???""??????? [ ###? | | ?????????????# """ #??#? ???????!%* ?? | | ?????????????# """ #??#?????????==[#??? | | ?????????????# ##########??? ???? | | ??????# #######+## #### #?#??? | | ??????+ ==[ T #?#?#? | | ??????# [%=! ##???? | | ??????# !*=%""" """ ##?#?? | | ???"" ##### ""%%*""" """ #????? | | ????? ???## "=[[!/"" """ #????? | | ????? ?#?## !=*= #?#??? | | ???"?????## ##?#?? | | ??????????# " " " """ !] #??#?? | | ???" ?????# " """ !! ##?### | | ? ?? ?#??# " = " " """ ##???? | | ???? ????## !% #????? | | #??######## [ ] #?#??? | +----------------------------------------------------+ Best States ------------- Heat Dissipation 28 Energy Generation 14 Energy Capacity 265 Matter Stores 300 Matter Capacity 300 Sight Range 16 Terrain Scan Range 16 Terrain Scan Density 110 Evasion (%) 55 Recoil Reduction 2 Item Schematics ----------------- None Robot Schematics ------------------ None Fabricated ------------ Nothing Alien Tech Used ----------------- None Achievements -------------- Omniscient Cartographer Challenges ------------ None Game ------ Seed ThrowingWardroneAutobeam Manual? 0 Play Time 00:21:07 Cumulative 10.3 hours Start 2024.05.05 @ 14:51:10 End 2024.05.05 @ 15:11:13 Sessions 1 Manual Loads 0 Difficulty Rogue Special Mode None Game No. 23 Rogue 23 Adventurer 0 Explorer 0 Win Type - Total 0 Types 0/0/0/0/0/0/0/0/0 Lore% 14 Gallery% 11 Achievement% 11 Wizard Run 0 Options --------- Layout 1 ASCII 0 Keyboard 0 Movement Arrows Keybinds 0 Fullscreen 2 Font 24/Smallcaps Map View 50x35 Zoom Use 0% Tactical HUD 1 Map Filters NONE Filters NONE Steam 1 RUN: aa8348a8-82cb-4dbb-90d9-15293d93700b